bitfinex-derivatives/quotes_SOLF0:USTF0_20250202
["timestamp","ask_amount","ask_price","bid_price","bid_amount"]
[1738456850427,1.4161,216.72,216.6,20.25365816]
[1738456850630,6.0306,216.72,216.61,4.6167]
[1738456850828,1.4161,216.72,216.6,20.25365816]
[1738456851030,2.952,216.72,216.56,20.25365816]
[1738456851231,4.6149,216.7,216.6,4.6169]
[1738456851528,0.03423716,216.66,216.62,0.03171597]
[1738456853629,0.03423716,216.66,216.63,4.6163]
[1738456853934,0.03423716,216.66,216.62,0.03171597]
[1738456854136,0.03423716,216.66,216.64,24.86975816]
[1738456858836,0.03423716,216.66,216.64,4.6161]
[1738456860636,0.03423716,216.66,216.65,4.6159]
[1738456862036,0.03423716,216.66,216.63,4.6162]
[1738456863040,0.03423716,216.66,216.62,0.03171597]
[1738456863341,4.5025,216.8,216.64,20.25365816]
[1738456863731,4.5025,216.8,216.68,20.25365816]
[1738456863930,2.9963,216.8,216.68,20.25365816]
[1738456864137,1.4179,216.85,216.72,20.25365816]
[1738456864444,0.0312494,216.81,216.77,20.25365816]
[1738456864639,75.45359244,216.95,216.77,23.37365816]
[1738456864934,75.45359244,216.95,216.85,20.25365816]
[1738456865536,80.06319244,216.95,216.81,20.25365816]
[1738456865741,0.03531409,216.92,216.88,0.02964282]
[1738456866441,4.6105,216.91,216.78,4.613]
[1738456866633,1.485,216.94,216.77,20.25365816]
[1738456867439,4.64317494,216.88,216.83,0.03165245]
[1738456867838,0.03207494,216.88,216.83,0.03165245]
[1738456868939,0.03207494,216.88,216.85,4.6116]
[1738456869444,0.03207494,216.88,216.87,4.6112]
[1738456869645,3.12,217.05,216.85,20.25365816]
[1738456869841,1.4084,217.01,216.89,20.25365816]
[1738456870040,1.4084,217.01,216.91,4.6103]
[1738456870442,1.4084,217.01,216.89,20.25365816]
[1738456870639,20.25365816,217.07,216.89,20.25365816]
[1738456870842,0.03512456,216.97,216.93,0.0343529]
[1738456871138,20.25365816,217.03,216.85,20.25365816]
[1738456871344,0.03452984,216.97,216.93,0.03126923]
[1738456872840,0.03452984,216.97,216.85,20.25365816]
[1738456873045,4.6102,216.92,216.82,4.6121]
[1738456873247,20.25365816,216.99,216.81,20.25365816]
[1738456873644,20.25365816,216.99,216.77,20.25365816]
[1738456873645,20.25365816,216.95,216.77,20.25365816]
[1738456873851,1.5305,216.94,216.77,20.25365816]
[1738456874047,1.5305,216.94,216.73,20.49915816]
[1738456874255,4.6116,216.86,216.84,0.0351498]
[1738456874853,3.15216393,216.88,216.73,20.25365816]
[1738456875253,3.12,216.88,216.73,20.25365816]
[1738456876055,0.03427335,216.83,216.78,0.03024852]
[1738456879358,0.03427335,216.83,216.78,4.64334852]
[1738456879855,0.03427335,216.83,216.78,0.03024852]
[1738456880254,0.03427335,216.83,216.8,4.6127]
[1738456880651,0.03427335,216.83,216.78,4.64324852]
[1738456880850,0.03427335,216.83,216.78,0.03024852]
[1738456881761,0.03427335,216.83,216.79,4.6129]
[1738456882658,0.03427335,216.83,216.82,4.6123]
[1738456882863,1.54,216.93,216.81,20.25365816]
[1738456883155,1.54,216.93,216.85,20.25365816]
[1738456883462,4.6102,216.92,216.85,20.25365816]
[1738456883862,0.03384251,216.91,216.86,0.0308327]
[1738456885362,4.6112,216.87,216.86,0.0308327]
[1738456886962,0.03384251,216.91,216.86,0.0308327]
[1738456887862,4.6106,216.9,216.86,0.0308327]
[1738456888260,0.03384251,216.91,216.86,0.0308327]
[1738456889058,1.4259,216.99,216.9,20.25365816]
[1738456889662,6.0346,216.99,216.92,4.61]
[1738456889962,1.4259,216.99,216.9,20.25365816]
[1738456890163,0.0338055,216.97,216.92,0.03134093]
[1738456892764,4.6430055,216.97,216.92,0.03134093]
[1738456893662,0.0338055,216.97,216.92,0.03134093]
[1738456894367,0.0338055,216.97,216.86,20.25365816]
[1738456894564,20.25365816,216.94,216.77,20.25365816]
[1738456895468,0.03225026,216.88,216.83,0.02928374]
[1738456896065,4.6117,216.86,216.83,0.02928374]
[1738456896261,1.5242,216.87,216.83,0.02928374]
[1738456897468,4.6115,216.86,216.83,0.02928374]
[1738456898472,7.6655,216.87,216.83,0.02928374]
[1738456899473,4.6115,216.86,216.83,0.02928374]
[1738456900969,7.6655,216.87,216.83,0.02928374]
[1738456901874,3.0542,216.87,216.83,0.02928374]
[1738456902085,4.6115,216.86,216.83,0.02928374]
[1738456902376,4.4769,216.87,216.83,0.02928374]
[1738456902971,9.0881,216.87,216.83,0.02928374]
[1738456903173,0.03225026,216.88,216.83,0.02928374]
[1738456904374,0.03225026,216.88,216.83,4.64118374]
[1738456906382,0.03225026,216.88,216.83,0.02928374]
[1738456906573,4.6115,216.86,216.83,0.02928374]
[1738456908677,4.6117,216.85,216.83,0.02928374]
[1738456909676,0.03225026,216.88,216.83,0.02928374]
[1738456910384,4.6116,216.86,216.83,0.02928374]
[1738456911183,0.03225026,216.88,216.83,0.02928374]
[1738456911579,0.03225026,216.88,216.73,20.25365816]
[1738456911877,4.6126,216.81,216.75,4.6138]
[1738456912784,0.03429092,216.8,216.76,0.03531289]
[1738456913383,4.64709092,216.8,216.76,0.03531289]
[1738456913785,0.03429092,216.8,216.76,0.03531289]
[1738456914280,0.03429092,216.8,216.77,20.25365816]
[1738456914778,2.9671,216.95,216.77,20.25365816]
[1738456914977,6.0871,216.95,216.81,20.25365816]
[1738456915183,19.9571,216.95,216.81,20.25365816]
[1738456915377,40.21075816,216.95,216.78,4.613]
[1738456916086,4.6118,216.85,216.84,0.02959227]
[1738456918289,4.64149615,216.89,216.84,0.02959227]
[1738456918791,4.6112,216.88,216.84,0.02959227]
[1738456918982,0.03049615,216.89,216.77,20.25365816]
[1738456919188,0.03049615,216.89,216.73,20.25365816]
[1738456919386,13.87,216.88,216.69,20.25365816]
[1738456919689,1.4336,216.89,216.69,20.25365816]
[1738456919881,4.6126,216.81,216.69,20.25365816]
[1738456920283,0.03326297,216.77,216.73,0.02980496]
[1738456920685,15.3036,216.89,216.69,20.25365816]
[1738456920886,0.02940307,216.77,216.75,4.6136]
[1738456921386,0.0299361,216.78,216.75,4.6136]
[1738456921589,4.6124,216.82,216.75,4.6136]
[1738456921788,0.0337913,216.79,216.75,4.6136]
[1738456923288,0.0337913,216.79,216.78,4.6132]
[1738456923496,4.611,216.88,216.77,20.25365816]
[1738456924395,1.4336,216.89,216.79,4.6129]
[1738456924696,0.03541295,216.85,216.8,0.03116256]
[1738456926992,0.03541295,216.85,216.8,4.64376256]
[1738456928093,0.03541295,216.85,216.81,4.6123]
[1738456928393,0.03541295,216.85,216.8,0.03116256]
[1738456929396,0.03541295,216.85,216.82,4.6123]
[1738456929593,0.03541295,216.85,216.8,0.03116256]
[1738456932197,0.03541295,216.85,216.82,12.63471612]
[1738456932591,4.6093,216.97,216.84,4.6119]
[1738456932792,12.63471612,217.0,216.86,12.63471612]
[1738456932995,15.75471612,217.0,216.86,12.63471612]
[1738456933794,0.03251177,216.93,216.88,4.64078822]
[1738456934098,0.03251177,216.93,216.88,0.02998822]
[1738456935394,4.64251177,216.93,216.88,0.02998822]
[1738456935789,10.65852589,217.08,216.92,25.26943224]
[1738456935995,10.65852589,217.08,216.95,12.63471612]
[1738456936296,12.63471612,217.1,216.96,4.6092]
[1738456936800,4.6069,217.08,216.97,4.609]
[1738456936995,0.03071104,217.05,217.01,0.02986848]
[1738456938702,0.03071104,217.05,217.03,4.6077]
[1738456938901,0.03071104,217.05,217.01,0.02986848]
[1738456939300,0.03071104,217.05,217.03,4.6077]
[1738456939695,0.03071104,217.05,217.01,0.02986848]
[1738456939901,0.03071104,217.05,217.01,4.63796848]
[1738456940297,0.03071104,217.05,217.01,0.02986848]
[1738456944803,0.03071104,217.05,217.02,20.184091]
[1738456948006,0.03071104,217.05,217.01,0.02986848]
[1738456948506,3.01601104,217.05,217.01,0.02986848]
[1738456948805,4.6076,217.04,217.01,0.02986848]
[1738456949506,3.01601104,217.05,216.92,20.184091]
[1738456949705,2.9853,217.05,216.92,20.184091]
[1738456949905,1.4517,217.04,216.92,20.184091]
[1738456950511,4.6085,217.0,216.93,4.61]
[1738456950803,0.03225757,217.0,216.96,0.03106218]
[1738456951004,0.03225757,217.0,216.88,20.184091]
[1738456951204,4.6091,216.98,216.91,4.6103]
[1738456952102,0.03418328,216.97,216.92,0.03168149]
[1738456953204,4.64338328,216.97,216.92,0.03168149]
[1738456953710,4.6096,216.95,216.92,0.03168149]
[1738456954113,0.03418328,216.97,216.92,0.03168149]
[1738456954807,0.03418328,216.97,216.96,20.184091]
[1738456959711,0.03418328,216.97,216.95,17.2269164]
[1738456959909,0.03418328,216.97,216.95,12.6174164]
[1738456960712,0.03418328,216.97,216.92,17.25909789]
[1738456961114,0.03418328,216.97,216.92,12.64909789]
[1738456961307,0.03418328,216.97,216.94,4.6097]
[1738456962417,0.03418328,216.97,216.95,4.6095]
[1738456963915,0.03418328,216.97,216.96,4.6093]
[1738456966008,0.03418328,216.97,216.95,12.6174164]
[1738456966820,0.03418328,216.97,216.96,4.6093]
[1738456967921,0.03418328,216.97,216.95,12.6174164]
[1738456969717,0.03418328,216.97,216.95,17.2269164]
[1738456971519,0.03418328,216.97,216.92,0.03168149]
[1738456972719,4.64338328,216.97,216.92,0.03168149]
[1738456972924,2.9675,216.96,216.92,0.03168149]
[1738456981924,7.5769,216.96,216.92,0.03168149]
[1738456982121,2.9675,216.96,216.77,154.54410948]
[1738456982426,4.6111,216.88,216.77,167.16152588]
[1738456982817,12.6174164,216.91,216.79,4.6127]
[1738456983124,12.6174164,216.94,216.8,12.6174164]
[1738456983327,0.03220023,216.87,216.83,0.03461579]
[1738456984129,0.03220023,216.87,216.86,17.2289164]
[1738456984328,1.478,216.95,216.86,12.6174164]
[1738456984625,2.9675,216.96,216.89,12.6174164]
[1738456984828,2.9675,216.96,216.9,4.6105]
[1738456985022,1.4652,217.0,216.92,12.6174164]
[1738456985623,0.03125291,216.98,216.94,0.03238614]
[1738456986824,4.64015291,216.98,216.94,0.03238614]
[1738456987535,0.03125291,216.98,216.94,0.03238614]
[1738456988731,0.03125291,216.98,216.96,4.6093]
[1738456989133,1.5512,217.09,216.95,12.6174164]
[1738456989328,1.5512,217.09,216.98,12.6174164]
[1738456989529,4.6068,217.08,216.99,4.6085]
[1738456990034,1.5512,217.09,216.98,12.6174164]
[1738456990234,0.02964086,217.06,217.01,0.02957247]
[1738456990730,4.6076,217.04,217.01,0.02957247]
[1738456991231,0.02964086,217.06,217.01,0.02957247]
[1738456992428,0.02964086,217.06,217.01,12.64698887]
[1738456993734,0.02964086,217.06,217.03,4.6078]
[1738456994827,0.02964086,217.06,217.01,0.02957247]
[1738456996428,4.6074,217.05,217.01,0.02957247]
[1738456996634,0.02964086,217.06,217.01,0.02957247]
[1738456997233,0.02964086,217.06,216.92,12.6174164]
[1738456997423,4.6276,217.06,216.92,12.6174164]
[1738456997624,4.6276,217.06,216.92,17.2274164]
[1738456998127,12.6174164,217.04,216.92,12.6174164]
[1738456998333,12.6174164,217.01,216.89,12.6174164]
[1738456998533,0.03511369,217.0,216.96,0.03120357]
[1738456999234,4.6091,216.97,216.96,0.03120357]
[1738457000632,4.6089,216.99,216.96,0.03120357]
[1738457001226,1.48841369,217.0,216.96,0.03120357]
[1738457001430,6.09691369,217.0,216.96,0.03120357]
[1738457002732,1.48841369,217.0,216.96,0.03120357]
[1738457003533,6.09691369,217.0,216.96,0.03120357]
[1738457005239,4.64361369,217.0,216.96,0.03120357]
[1738457005437,0.03511369,217.0,216.96,0.03120357]
[1738457006038,0.03511369,217.0,216.99,4.6087]
[1738457007237,1.5402,217.11,216.98,12.6174164]
[1738457007437,4.6064,217.1,217.02,4.608]
[1738457008537,0.03307412,217.08,217.04,0.03027826]
[1738457010739,4.6074,217.05,217.04,0.03027826]
[1738457011136,4.6079,217.03,216.96,4.6091]
[1738457011333,12.6174164,217.1,216.96,4.6091]
[1738457012441,4.6081,217.02,217.01,0.03230303]
[1738457013138,0.03371548,217.05,216.82,124.26220494]
[1738457013139,12.6174164,217.04,216.92,17.2274164]
[1738457013440,1.4293,217.03,216.92,12.6174164]
[1738457013643,4.6082,217.02,216.92,12.6174164]
[1738457014241,0.03270242,216.99,216.95,0.0345895]
[1738457015239,0.03270242,216.99,216.95,12.6520059]
[1738457016237,0.03270242,216.99,216.95,0.0345895]
[1738457016742,4.64140242,216.99,216.95,0.0345895]
[1738457016942,0.03270242,216.99,216.95,0.0345895]
[1738457017444,4.6093,216.96,216.95,0.0345895]
[1738457018240,4.6105,216.91,216.86,12.6174164]
[1738457018436,12.6174164,216.98,216.83,12.6174164]
[1738457019240,4.61,216.93,216.87,4.6112]
[1738457019448,0.03248584,216.93,216.88,0.03437152]
[1738457021548,0.03248584,216.93,216.88,4.64527152]
[1738457022348,0.03248584,216.93,216.88,0.03437152]
[1738457023046,0.03248584,216.93,216.88,4.64527152]
[1738457023743,0.03248584,216.93,216.91,4.6103]
[1738457023942,0.03248584,216.93,216.89,12.6174164]
[1738457024150,0.03248584,216.93,216.92,12.6174164]
[1738457024448,0.03248584,216.93,216.92,17.2276164]
[1738457025851,1.4293,217.03,216.92,12.6174164]
[1738457026051,1.486,217.07,216.95,12.6174164]
[1738457026351,1.486,217.07,216.98,12.6174164]
[1738457027251,0.02966784,217.05,217.0,4.63889874]
[1738457028547,0.02966784,217.05,217.0,0.03039874]
[1738457031061,4.63706784,217.05,217.0,0.03039874]
[1738457034760,0.02966784,217.05,217.0,0.03039874]
[1738457035155,4.608,217.03,217.0,0.03039874]
[1738457039659,0.02966784,217.05,217.0,0.03039874]
[1738457040164,4.6083,217.01,217.0,0.03039874]
[1738457043864,0.02966784,217.05,217.0,0.03039874]
[1738457043865,4.608,217.03,217.0,0.03039874]
[1738457044061,0.02966784,217.05,217.0,0.03039874]
[1738457044662,0.02966784,217.05,217.01,12.6174164]
[1738457045364,0.02966784,217.05,217.04,17.2250164]
[1738457045570,12.6174164,217.16,217.04,12.6174164]
[1738457045869,12.6174164,217.19,217.04,12.6174164]
[1738457046766,0.03036376,217.14,217.09,0.03519618]
[1738457048073,4.6058,217.13,217.09,0.03519618]
[1738457048768,0.03036376,217.14,217.09,0.03519618]
[1738457049773,4.63606376,217.14,217.09,0.03519618]
[1738457050776,4.6058,217.13,217.09,0.03519618]
[1738457052274,0.03036376,217.14,217.09,4.64169618]
[1738457053478,0.03036376,217.14,217.09,0.03519618]
[1738457054675,4.63596376,217.14,217.09,0.03519618]
[1738457055075,4.6059,217.12,217.09,0.03519618]
[1738457055277,0.03036376,217.14,217.09,0.03519618]
[1738457058480,0.03036376,217.14,217.09,4.64179618]
[1738457062180,0.03036376,217.14,217.1,4.6063]
[1738457063679,0.03036376,217.14,217.12,8.06456543]
[1738457066085,0.03036376,217.14,217.13,4.6057]
[1738457069089,1.5437,217.27,217.22,4.6037]
[1738457069285,76.32526679,217.44,217.08,3.1]
[1738457069286,1.4977,217.36,217.25,8.06456543]
[1738457069485,8.06456543,217.33,217.26,8.06456543]
[1738457069681,4.6019,217.31,217.24,8.06456543]
[1738457069881,1.4036,217.32,217.22,8.06456543]
[1738457070182,8.06456543,217.29,217.22,8.06456543]
[1738457070488,8.06456543,217.27,217.18,8.06456543]
[1738457070685,4.6033,217.25,217.18,8.06456543]
[1738457070889,8.06456543,217.25,217.16,8.06456543]
[1738457071089,8.06456543,217.23,217.16,8.06456543]
[1738457071290,1.4036,217.22,217.16,8.06456543]
[1738457071485,1.43422512,217.22,217.17,0.03342369]
[1738457072790,0.03062512,217.22,217.17,0.03342369]
[1738457072991,0.03062512,217.22,217.17,4.63822369]
[1738457073290,1.4637,217.34,217.21,12.59299473]
[1738457073491,3.0078,217.34,217.21,12.59299473]
[1738457074186,4.6016,217.33,217.26,4.6029]
[1738457074392,0.0312159,217.32,217.27,0.0306043]
[1738457075290,4.6329159,217.32,217.27,0.0306043]
[1738457076787,4.6329159,217.32,217.3,4.602]
[1738457076788,0.0312159,217.32,217.3,4.602]
[1738457076992,2.9424,217.44,217.3,12.59299473]
[1738457077289,4.5977,217.51,217.4,12.59299473]
[1738457077491,4.5977,217.51,217.41,4.5997]
[1738457077790,17.02069473,217.53,217.4,12.59299473]
[1738457077996,9.025,217.53,217.43,4.5993]
[1738457078192,0.0335963,217.49,217.44,0.03299259]
[1738457079195,4.5986,217.47,217.44,0.03299259]
[1738457079596,4.599,217.45,217.36,12.59299473]
[1738457080689,0.03275137,217.43,217.38,0.03101113]
[1738457083991,4.6001,217.4,217.38,0.03101113]
[1738457084192,12.59299473,217.41,217.3,12.59299473]
[1738457084392,2.8799,217.42,217.27,0.56068702]
[1738457084393,12.59299473,217.38,217.27,0.56068702]
[1738457084894,1.5218,217.41,217.3,12.59299473]
[1738457085098,4.6,217.4,217.32,4.6017]
[1738457085498,0.02943853,217.38,217.34,0.03503776]
[1738457088502,0.02943853,217.38,217.34,4.63613776]
[1738457088899,0.02943853,217.38,217.34,0.03503776]
[1738457089195,0.02943853,217.38,217.35,4.601]
[1738457089400,0.02943853,217.38,217.34,0.03503776]
[1738457093104,12.59299473,217.37,217.27,0.56068702]
[1738457093306,1.456,217.36,217.23,12.59299473]
[1738457093505,2.9469,217.36,217.23,12.59299473]
[1738457093806,4.6015,217.33,217.26,4.6029]
[1738457094307,0.02997647,217.32,217.27,0.03170481]
[1738457097105,0.02997647,217.32,217.29,12.59299473]
[1738457097611,0.02997647,217.32,217.31,4.6019]
[1738457098607,4.5999,217.41,217.29,12.59299473]
[1738457098809,4.5999,217.41,217.33,12.59299473]
[1738457099710,0.03207019,217.39,217.35,0.03104298]
[1738457100712,0.03207019,217.39,217.36,4.6008]
[1738457101308,0.03207019,217.39,217.38,4.6004]
[1738457101508,0.03207019,217.39,217.36,12.59299473]
[1738457102806,0.03207019,217.39,217.38,4.6004]
[1738457103118,0.03207019,217.39,217.35,0.03104298]
[1738457105711,4.6004,217.38,217.35,0.03104298]
[1738457107510,0.03207019,217.39,217.35,0.03104298]
[1738457107716,4.6007,217.37,217.35,0.03104298]
[1738457108215,0.03207019,217.39,217.35,0.03104298]
[1738457108512,4.6007,217.37,217.35,0.03104298]
[1738457109820,4.6013,217.34,217.28,0.55772433]
[1738457110212,1.4891,217.38,217.28,0.55772433]
[1738457111115,0.03319343,217.35,217.31,0.02988347]
[1738457111721,0.03319343,217.35,217.24,12.59299473]
[1738457111925,1.4891,217.38,217.21,12.59299473]
[1738457111926,12.59299473,217.33,217.21,12.59299473]
[1738457112117,4.6032,217.25,217.18,17.19749473]
[1738457112425,1.4384,217.32,217.18,12.59299473]
[1738457112823,4.6027,217.28,217.2,4.6041]
[1738457113127,0.03223023,217.27,217.23,0.03439305]
[1738457113527,4.603,217.26,217.23,0.03439305]
[1738457114926,4.6032,217.25,217.23,0.03439305]
[1738457115127,0.03223023,217.27,217.15,12.59299473]
[1738457115327,16.97,217.31,217.11,12.59299473]
[1738457115629,12.59299473,217.27,217.11,12.59299473]
[1738457115826,1.4763,217.26,217.15,4.6052]
[1738457116020,4.6039,217.22,217.15,4.6052]
[1738457116431,0.0337506,217.21,217.16,0.03013375]
[1738457120734,0.0337506,217.21,217.16,4.63503375]
[1738457121837,0.0337506,217.21,217.16,0.03013375]
[1738457122439,0.0337506,217.21,217.16,4.63513375]
[1738457122639,0.0337506,217.21,217.16,0.03013375]
[1738457123040,0.0337506,217.21,217.16,4.63513375]
[1738457123231,0.0337506,217.21,217.17,12.59299473]
[1738457123941,0.0337506,217.21,217.2,4.6042]
[1738457124131,12.59299473,217.36,217.2,12.59299473]
[1738457124435,2.8744,217.33,217.23,12.59299473]
[1738457124633,2.8744,217.33,217.24,4.6033]
[1738457124838,15.46739473,217.33,217.2,12.59299473]
[1738457125437,0.03026076,217.28,217.24,0.03376358]
[1738457127441,0.03026076,217.28,217.25,4.6031]
[1738457127641,0.03026076,217.28,217.24,0.03376358]
[1738457128940,0.03026076,217.28,217.26,4.6028]
[1738457129144,0.03026076,217.28,217.24,0.03376358]
[1738457130047,0.03026076,217.28,217.27,4.6027]
[1738457130740,0.03026076,217.28,217.24,4.63706358]
[1738457131843,0.03026076,217.28,217.24,0.03376358]
[1738457134748,12.59299473,217.27,217.13,12.59299473]
[1738457135247,4.6031,217.26,217.16,4.6051]
[1738457135949,4.6031,217.26,217.19,0.03033749]
[1738457135950,0.03019381,217.23,217.19,0.03033749]
[1738457140246,0.03019381,217.23,217.19,12.62333222]
[1738457140444,0.03019381,217.23,217.22,12.59299473]
[1738457140847,0.03019381,217.23,217.22,17.19679473]
[1738457141449,4.6022,217.3,217.22,12.59299473]
[1738457141652,1.4692,217.31,217.22,12.59299473]
[1738457142050,1.4692,217.31,217.19,17.19739473]
[1738457142247,1.4692,217.31,217.16,12.59299473]
[1738457142654,4.6033,217.25,217.21,0.02912572]
[1738457144952,0.03174483,217.26,217.22,12.59299473]
[1738457145148,12.59299473,217.45,217.25,25.18598946]
[1738457145349,2.9714,217.44,217.34,12.59299473]
[1738457145551,2.9714,217.44,217.38,4.6004]
[1738457145748,88.91826152,217.51,217.38,4.6004]
[1738457145949,4.5982,217.49,217.37,12.59299473]
[1738457146354,0.03006992,217.45,217.41,0.03529696]
[1738457147156,0.03006992,217.45,217.41,4.63499696]
[1738457147355,0.03006992,217.45,217.41,0.03529696]
[1738457147759,0.03006992,217.45,217.43,17.19229473]
[1738457147954,1.5006,217.57,217.43,12.59299473]
[1738457148157,6.0971,217.57,217.47,4.5985]
[1738457148559,14.09359473,217.57,217.43,12.59299473]
[1738457149259,0.02917756,217.52,217.48,0.03228682]
[1738457151654,0.02917756,217.52,217.49,12.59299473]
[1738457153450,4.59947756,217.52,217.48,0.03228682]
[1738457153655,0.00187756,217.52,217.48,0.03228682]
[1738457154552,4.598,217.5,217.48,0.03228682]
[1738457155759,4.5978,217.51,217.48,0.03228682]
[1738457156253,0.00187756,217.52,217.48,0.03228682]
[1738457156459,0.00187756,217.52,217.49,12.59299473]
[1738457157050,0.00187756,217.52,217.5,4.5978]
[1738457160462,6.0516,217.64,217.49,12.59299473]
[1738457160764,12.59299473,217.75,217.6,12.59299473]
[1738457160963,16.97919473,217.78,217.63,12.59299473]
[1738457161557,12.59299473,217.75,217.6,12.59299473]
[1738457161762,4.5939,217.69,217.68,0.02961433]
[1738457161964,12.59299473,217.72,217.57,12.59299473]
[1738457162267,4.5947,217.66,217.57,12.59299473]
[1738457162458,12.59299473,217.66,217.54,12.59299473]
[1738457162857,4.5955,217.62,217.54,12.59299473]
[1738457163268,0.03238646,217.6,217.56,0.02973087]
[1738457163469,4.5962,217.58,217.56,0.02973087]
[1738457163863,0.03238646,217.6,217.56,0.02973087]
[1738457165767,0.03238646,217.6,217.56,4.62623087]
[1738457166470,0.03238646,217.6,217.56,0.02973087]
[1738457166866,0.03238646,217.6,217.58,4.5962]
[1738457167170,1.4189,217.7,217.57,20.09018572]
[1738457167362,1.4189,217.7,217.61,20.09018572]
[1738457168271,0.03034262,217.68,217.63,0.03324417]
[1738457168769,0.03034262,217.68,217.64,4.5949]
[1738457168964,0.03034262,217.68,217.63,0.03324417]
[1738457169770,0.03034262,217.68,217.65,4.5946]
[1738457169969,0.03034262,217.68,217.63,0.03324417]
[1738457171269,0.03034262,217.68,217.63,4.62834417]
[1738457171469,0.03034262,217.68,217.63,0.03324417]
[1738457172876,0.03034262,217.68,217.63,4.62834417]
[1738457173274,0.03034262,217.68,217.63,0.03324417]
[1738457173875,0.03034262,217.68,217.65,20.09018572]
[1738457174272,1.514,217.8,217.65,20.09018572]
[1738457174572,0.17267,217.79,217.69,20.09018572]
[1738457174974,4.76457,217.79,217.69,20.09018572]
[1738457175475,0.03340594,217.76,217.75,4.5926]
[1738457175776,0.03340594,217.76,217.72,0.03343128]
[1738457177075,4.5929,217.74,217.72,0.03343128]
[1738457177272,0.03340594,217.76,217.72,0.03343128]
[1738457177470,4.5928,217.74,217.72,0.03343128]
[1738457178178,4.593,217.73,217.72,0.03343128]
[1738457178379,1.5435,217.75,217.72,0.03343128]
[1738457179481,0.03340594,217.76,217.72,0.03343128]
[1738457180074,0.03340594,217.76,217.72,4.62663128]
[1738457182381,0.03340594,217.76,217.73,20.09018572]
[1738457182583,0.03340594,217.76,217.75,4.5926]
[1738457184079,20.09018572,217.96,217.73,20.09018572]
[1738457184281,4.5883,217.96,217.87,4.59]
[1738457184582,4.4814,218.01,217.87,20.09018572]
[1738457184983,4.588,217.97,217.89,4.5896]
[1738457185382,0.03048035,217.95,217.91,0.02948833]
[1738457185786,4.5889,217.93,217.82,20.09018572]
[1738457186583,4.5889,217.93,217.83,4.5908]
[1738457186982,0.03157071,217.9,217.86,0.03149164]
[1738457187182,20.09018572,217.98,217.82,20.09018572]
[1738457187379,20.09018572,217.98,217.86,0.03307238]
[1738457187685,4.62374083,217.9,217.86,0.03307238]
[1738457187881,0.03424083,217.9,217.86,0.03307238]
[1738457189189,0.03424083,217.9,217.86,20.1232581]
[1738457189390,0.03424083,217.9,217.88,4.5897]
[1738457189590,0.03424083,217.9,217.86,20.1232581]
[1738457190199,0.03424083,217.9,217.86,24.7134581]
[1738457190391,0.03424083,217.9,217.86,20.1232581]
[1738457191597,0.03424083,217.9,217.86,0.03307238]
[1738457193399,0.03424083,217.9,217.88,4.5899]
[1738457193793,4.4814,218.01,217.89,20.09018572]
[1738457194894,9.0686,218.01,217.93,4.5888]
[1738457195199,20.09018572,218.1,217.93,4.5888]
[1738457195200,0.0316274,217.97,217.93,0.03485771]
[1738457195401,0.0316274,217.97,217.95,4.5884]
[1738457195598,4.5868,218.03,217.95,4.5884]
[1738457195794,0.03101875,217.97,217.94,0.03408764]
[1738457195999,2.8565,218.08,217.89,20.09018572]
[1738457196402,0.02954035,217.98,217.93,0.02924661]
[1738457196600,0.02954035,217.98,217.93,4.61804661]
[1738457196801,2.8565,218.08,217.89,20.09018572]
[1738457197003,0.02896182,217.98,217.93,0.03522241]
[1738457197202,4.587,218.02,217.91,4.5891]
[1738457197399,0.03165121,217.98,217.93,0.03424125]
[1738457197903,0.03165121,217.98,217.93,4.62304125]
[1738457201801,0.03165121,217.98,217.94,4.5886]
[1738457205605,0.03165121,217.98,217.93,20.12442697]
[1738457205802,0.03165121,217.98,217.96,12.50176586]
[1738457207705,0.03165121,217.98,217.96,17.08996586]
[1738457208309,0.03165121,217.98,217.96,12.50176586]
[1738457208509,0.03165121,217.98,217.97,4.588]
[1738457210502,0.03165121,217.98,217.96,12.50176586]
[1738457210802,0.03165121,217.98,217.96,17.08996586]
[1738457211007,0.03165121,217.98,217.96,12.50176586]
[1738457213208,4.5882,217.96,217.93,0.03424125]
[1738457213514,0.03165121,217.98,217.93,0.03424125]
[1738457214318,4.61945121,217.98,217.93,0.03424125]
[1738457214617,0.03165121,217.98,217.93,0.03424125]
[1738457215616,4.5882,217.96,217.93,0.03424125]
[1738457215916,0.03165121,217.98,217.93,0.03424125]
[1738457216317,4.589,217.93,217.87,12.50176586]
[1738457216911,4.5887,217.94,217.87,17.09166586]
[1738457217112,12.50176586,218.0,217.87,17.09166586]
[1738457217313,12.50176586,218.0,217.87,12.50176586]
[1738457217512,4.589,217.92,217.91,0.03038922]
[1738457219016,4.5888,217.93,217.91,0.03038922]